fUST/lending_fUST_20250810
["ID","MTS","AMOUNT","RATE_DAILY","PERIOD"]
[378256198,1754801444574,-216.64838636,0.00022223,2]
[378256199,1754801444584,-160.0,0.00022223,2]
[378256200,1754801444593,-494.82919914,0.00022226,2]
[378256201,1754801444604,-151.0,0.000223,2]
[378256202,1754801444613,-460.0,0.00022318,2]
[378256203,1754801444623,-350.0,0.00022319,2]
[378256204,1754801444635,-460.0,0.00022319,2]
[378256205,1754801444644,-334.63,0.00022319,2]
[378256206,1754801444654,-607.53,0.00022319,2]
[378256208,1754801444663,-624.93,0.00022319,2]
[378256210,1754801444672,-822.26,0.00022319,2]
[378256212,1754801444682,-460.0,0.00022319,2]
[378256213,1754801444691,-460.0,0.00022319,2]
[378256215,1754801444701,-460.0,0.00022319,2]
[378256217,1754801444711,-1351.58,0.00022319,2]
[378256219,1754801444720,-460.0,0.00022319,2]
[378256221,1754801444730,-460.0,0.00022319,2]
[378256222,1754801444739,-208.76,0.00022319,2]
[378256224,1754801444748,-460.0,0.00022319,2]
[378256225,1754801444758,-460.0,0.00022319,2]
[378256227,1754801444767,-579.28,0.00022319,2]
[378256229,1754801444777,-405.74,0.00022319,2]
[378256230,1754801444786,-460.0,0.00022319,2]
[378256232,1754801444795,-761.44,0.00022319,2]
[378256234,1754801444804,-460.0,0.00022319,2]
[378256235,1754801444814,-460.0,0.00022319,2]
[378256237,1754801444823,-226.0,0.00022319,2]
[378256239,1754801444833,-460.0,0.00022319,2]
[378256241,1754801444842,-460.0,0.00022319,2]
[378256242,1754801444852,-460.0,0.0002232,2]
[378256244,1754801444861,-460.0,0.00022321,2]
[378256246,1754801444870,-460.0,0.00022321,2]
[378256248,1754801444884,-460.0,0.00022321,2]
[378256249,1754801444894,-502.2,0.00022321,2]
[378256251,1754801444904,-485.86,0.00022321,2]
[378256253,1754801444913,-460.0,0.00022321,2]
[378256254,1754801444922,-1451.41,0.00022321,2]
[378256256,1754801444932,-460.0,0.00022321,2]
[378256258,1754801444941,-460.0,0.00022321,2]
[378256259,1754801444951,-460.0,0.00022321,2]
[378256261,1754801444960,-151.0,0.00022332,7]
[378256263,1754801444970,-168.0,0.0002235,2]
[378256265,1754801444982,-460.0,0.0002237,2]
[378256266,1754801444991,-460.0,0.0002237,2]
[378256268,1754801445000,-151.0,0.00022372,7]
[378256270,1754801445010,-151.0,0.00022372,7]
[378256272,1754801445021,-151.0,0.00022372,7]
[378256273,1754801445031,-151.0,0.00022372,7]
[378256275,1754801445040,-151.0,0.00022372,7]
[378256277,1754801445050,-769.70275985,0.00022395,2]
[378256279,1754801445061,-1000.0,0.00022495,2]
[378256281,1754801445072,-1000.0,0.00022495,2]
[378256282,1754801445081,-746.14763058,0.00022495,2]
[378256284,1754801445091,-151.0,0.000225,2]
[378256286,1754801445100,-151.0,0.000225,7]
[378256287,1754801445109,-1000.0,0.00022508,2]
[378256289,1754801445118,-200.152614,0.00022508,7]
[378256291,1754801445129,-151.0,0.00022508,7]
[378256293,1754801445138,-333.694264,0.00022508,7]
[378256294,1754801445148,-333.694264,0.00022508,7]
[378256296,1754801445156,-167.637095,0.00022508,7]
[378256298,1754801445165,-230.162785,0.00022508,7]
[378256300,1754801445174,-230.162785,0.00022508,7]
[378256302,1754801445184,-151.0,0.00022527,7]
[378256303,1754801445194,-168.0,0.00022528,2]
[378256305,1754801445203,-1707.0,0.00022541,2]
[378256307,1754801445213,-301.663825,0.00022541,7]
[378256309,1754801445222,-151.0,0.00022541,7]
[378256310,1754801445232,-151.0,0.00022541,7]
[378256312,1754801445241,-1920.93666315,0.00022548,2]
[378256314,1754801445250,-13243.38331495,0.00022548,3]
[378256316,1754801445260,-215.44987349,0.00022548,3]
[378256317,1754801445269,-527.86640923,0.00022548,3]
[378256319,1754801445278,-312.16666667,0.00022548,3]
[378256321,1754801445288,-461.62346162,0.00022548,3]
[378256323,1754801445298,-213.71033123,0.0002255,2]
[378256325,1754801445308,-200.0,0.0002257,15]
[378256327,1754801445318,-300.0,0.0002257,15]
[378256328,1754801445328,-160.0,0.0002259,2]
[378256330,1754801445337,-151.0,0.00022592,7]
[378256332,1754801445347,-260.341292,0.00022592,7]
[378256334,1754801445357,-151.0,0.00022592,7]
[378256336,1754801445366,-151.0,0.00022592,7]
[378256337,1754801445375,-151.0,0.00022592,7]
[378256339,1754801445385,-460.0,0.00022592,2]
[378256341,1754801445394,-460.0,0.00022593,2]
[378256343,1754801445404,-607.53,0.00022593,2]
[378256344,1754801445413,-624.93,0.00022593,2]
[378256346,1754801445422,-822.26,0.00022593,2]
[378256348,1754801445431,-460.0,0.00022593,2]
[378256349,1754801445441,-162.18987132,0.00022593,2]
[378256351,1754801445450,-488.47123411,0.00022593,2]
[378256353,1754801445460,-1351.58,0.00022593,2]
[378256354,1754801445470,-460.0,0.00022593,2]
[378256356,1754801445479,-460.0,0.00022593,2]
[378256358,1754801445489,-460.0,0.00022593,2]
[378256360,1754801445499,-460.0,0.00022593,2]
[378256361,1754801445509,-460.0,0.00022593,2]
[378256363,1754801445518,-761.44,0.00022593,2]
[378256365,1754801445527,-382.9,0.00022593,2]
[378256367,1754801445537,-460.0,0.00022593,2]
[378256368,1754801445546,-460.0,0.00022593,2]
[378256370,1754801445556,-460.0,0.00022593,2]
[378256372,1754801445565,-605.98505721,0.00022594,2]
[378256374,1754801445575,-151.712815,0.00022594,7]
[378256375,1754801445584,-460.0,0.00022595,2]
[378256377,1754801445594,-460.0,0.00022595,2]
[378256379,1754801445603,-460.0,0.00022595,2]
[378256381,1754801445613,-460.0,0.00022595,2]
[378256382,1754801445622,-485.86,0.00022595,2]
[378256384,1754801445634,-1451.41,0.00022595,2]
[378256386,1754801445644,-460.0,0.00022595,2]
[378256387,1754801445654,-460.0,0.00022595,2]
[378256389,1754801445664,-460.0,0.00022595,2]
[378256391,1754801445673,-1000.0,0.00022603,2]
[378256393,1754801445683,-1000.0,0.00022603,2]
[378256394,1754801445693,-1000.0,0.00022604,2]
[378256396,1754801445703,-151.0,0.00022606,7]
[378256398,1754801445712,-151.0,0.00022608,7]
[378256400,1754801445722,-151.0,0.00022608,7]
[378256401,1754801445732,-151.0,0.00022608,7]
[378256403,1754801445741,-151.0,0.00022608,7]
[378256405,1754801445751,-151.0,0.00022608,7]
[378256407,1754801445760,-151.0,0.00022608,7]
[378256408,1754801445770,-151.0,0.00022608,7]
[378256410,1754801445780,-151.0,0.00022608,7]
[378256412,1754801445789,-151.0,0.00022608,7]
[378256414,1754801445798,-151.0,0.00022608,7]
[378256415,1754801445808,-151.0,0.00022608,7]
[378256417,1754801445817,-151.0,0.00022608,7]
[378256419,1754801445827,-151.0,0.00022608,7]
[378256421,1754801445836,-151.0,0.00022608,7]
[378256422,1754801445846,-151.0,0.00022608,7]
[378256424,1754801445855,-151.0,0.00022608,7]
[378256426,1754801445864,-151.0,0.00022608,7]
[378256428,1754801445876,-151.0,0.00022608,7]
[378256429,1754801445884,-151.0,0.00022608,7]
[378256431,1754801445894,-151.0,0.00022608,7]
[378256433,1754801445903,-151.0,0.00022608,7]
[378256435,1754801445913,-151.0,0.00022608,7]
[378256436,1754801445922,-255.423253,0.00022608,7]
[378256438,1754801445933,-151.0,0.00022608,7]
[378256440,1754801445942,-215.44987349,0.00022608,7]
[378256442,1754801445954,-527.86640923,0.00022608,7]
[378256443,1754801445964,-312.16666667,0.00022608,7]
[378256444,1754801445974,-461.62346162,0.00022608,7]
[378256445,1754801445985,-151.0,0.00022608,7]
[378256446,1754801445994,-237.829517,0.00022608,7]
[378256447,1754801446003,-460.0,0.00022644,2]
[378256448,1754801446012,-460.0,0.00022644,2]
[378256449,1754801446022,-151.0,0.00022646,7]
[378256450,1754801446031,-151.0,0.00022646,7]
[378256451,1754801446041,-151.0,0.00022646,7]
[378256452,1754801446051,-152.940225,0.00022646,7]
[378256453,1754801446060,-151.0,0.00022646,7]
[378256454,1754801446069,-152.418429,0.00022646,7]
[378256456,1754801446079,-151.0,0.00022646,7]
[378256457,1754801446088,-151.0,0.00022646,7]
[378256458,1754801446096,-567.391488,0.00022646,7]
[378256459,1754801446106,-567.391488,0.00022646,7]
[378256460,1754801446115,-151.0,0.00022646,7]
[378256461,1754801446126,-824.785989,0.00022646,7]
[378256462,1754801446135,-824.785989,0.00022646,7]
[378256463,1754801446147,-151.000001,0.00022646,7]
[378256464,1754801446156,-151.0,0.00022646,7]
[378256465,1754801446165,-151.0,0.00022646,7]
[378256466,1754801446174,-151.0,0.00022646,7]
[378256467,1754801446183,-151.0,0.00022648,7]
[378256468,1754801446192,-151.0,0.00022648,7]
[378256469,1754801446200,-1707.0,0.00022666,2]
[378256470,1754801446209,-2060.9743057,0.00022687,2]
[378256471,1754801446218,-1000.0,0.00022688,2]
[378256472,1754801446227,-1000.0,0.00022688,2]
[378256473,1754801446236,-1000.0,0.00022705,2]
[378256474,1754801446245,-1000.0,0.00022705,2]
[378256475,1754801446254,-168.0,0.00022725,2]
[378256476,1754801446263,-151.0,0.0002273,7]
[378256477,1754801446272,-151.844864,0.0002273,7]
[378256478,1754801446281,-151.0,0.0002273,7]
[378256479,1754801446290,-151.0,0.0002273,7]
[378256480,1754801446299,-2150.0,0.00022788,2]
[378256481,1754801446308,-636.0,0.00022788,2]
[378256482,1754801446318,-972.698,0.00022788,2]
[378256483,1754801446327,-1214.82008152,0.00022834,2]
[378256484,1754801446336,-460.0,0.00022866,2]
[378256485,1754801446345,-460.0,0.00022867,2]
[378256486,1754801446354,-607.53,0.00022867,2]
[378256487,1754801446364,-624.93,0.00022867,2]
[378256488,1754801446373,-822.26,0.00022867,2]
[378256489,1754801446384,-460.0,0.00022867,2]
[378256490,1754801446394,-1351.58,0.00022867,2]
[378256491,1754801446404,-460.0,0.00022867,2]
[378256492,1754801446413,-460.0,0.00022867,2]
[378256493,1754801446422,-460.0,0.00022867,2]
[378256494,1754801446432,-460.0,0.00022867,2]
[378256495,1754801446441,-460.0,0.00022867,2]
[378256496,1754801446451,-761.44,0.00022867,2]
[378256497,1754801446460,-460.0,0.00022867,2]
[378256498,1754801446470,-279.58790847,0.00022867,2]
[378256499,1754801446478,-460.0,0.00022867,2]
[378256500,1754801446487,-151.0,0.00022868,7]
[378256501,1754801446496,-333.694264,0.00022868,7]
[378256502,1754801446505,-333.694264,0.00022868,7]
[378256503,1754801446514,-151.0,0.00022868,7]
[378256504,1754801446523,-151.0,0.00022868,7]
[378256505,1754801446532,-230.162785,0.00022868,7]
[378256506,1754801446541,-230.162785,0.00022868,7]
[378256507,1754801446550,-460.0,0.00022869,2]
[378256508,1754801446559,-171.02,0.00022869,2]
[378256509,1754801446568,-460.0,0.00022869,2]
[378256510,1754801446576,-306.64,0.00022869,2]
[378256511,1754801446585,-485.86,0.00022869,2]
[378256513,1754801446594,-1451.41,0.00022869,2]
[378256514,1754801446603,-460.0,0.00022869,2]
[378256515,1754801446613,-460.0,0.00022869,2]
[378256516,1754801446622,-460.0,0.00022869,2]
[378256517,1754801446635,-151.0,0.00022878,7]
[378256518,1754801446645,-151.0,0.00022881,7]
[378256519,1754801446654,-295.47814268,0.00022881,7]
[378256520,1754801446663,-151.0,0.00022881,7]
[378256521,1754801446672,-151.0,0.00022881,7]
[378256522,1754801446681,-182.764,0.00022897,2]
[378256523,1754801446690,-460.0,0.00022918,2]
[378256524,1754801446699,-460.0,0.00022918,2]
[378256525,1754801446708,-1707.0,0.00022923,2]
[378256526,1754801446718,-769.70275982,0.00022934,2]
[378256527,1754801446727,-215.44987349,0.00022982,2]
[378256528,1754801446736,-151.0,0.00023,7]
[378256529,1754801446745,-160.0,0.00023,2]
[378256530,1754801446754,-231.96268195,0.00023,3]
[378256531,1754801446763,-216.64838636,0.00023,3]
[378256532,1754801446772,-160.0,0.00023,3]
[378256533,1754801446781,-843.0869304,0.00023,3]
[378256534,1754801446790,-151.0,0.00023065,7]
[378256535,1754801446800,-1707.0,0.00023065,2]
[378256536,1754801446809,-260.0,0.00023138,2]
[378256537,1754801446818,-460.0,0.0002314,2]
[378256538,1754801446828,-460.0,0.00023141,2]
[378256539,1754801446837,-607.53,0.00023141,2]
[378256541,1754801446846,-624.93,0.00023141,2]
[378256542,1754801446855,-822.26,0.00023141,2]
[378256544,1754801446867,-460.0,0.00023141,2]
[378256545,1754801446886,-1351.58,0.00023141,2]
[378256547,1754801446895,-460.0,0.00023141,2]
[378256548,1754801446905,-460.0,0.00023141,2]
[378256549,1754801446914,-460.0,0.00023141,2]
[378256551,1754801446923,-460.0,0.00023141,2]
[378256552,1754801446932,-460.0,0.00023141,2]
[378256554,1754801446942,-761.44,0.00023141,2]
[378256556,1754801446951,-460.0,0.00023141,2]
[378256558,1754801446960,-460.0,0.00023141,2]
[378256560,1754801446969,-301.67158005,0.00023143,2]
[378256561,1754801446981,-460.0,0.00023143,2]
[378256563,1754801446991,-485.86,0.00023143,2]
[378256565,1754801447000,-1451.41,0.00023143,2]
[378256568,1754801447009,-299.13974629,0.00023143,2]
[378256569,1754801447018,-460.0,0.00023143,2]
[378256571,1754801447029,-460.0,0.00023143,2]
[378256574,1754801447039,-301.41276522,0.00023151,2]
[378256576,1754801447048,-1500.0,0.00023151,2]
[378256577,1754801447059,-1375.25632048,0.00023152,2]
[378256579,1754801447070,-151.0,0.00023155,7]
[378256582,1754801447080,-1707.0,0.00023181,2]
[378256583,1754801447089,-460.0,0.00023192,2]
[378256586,1754801447099,-460.0,0.00023192,2]
[378256588,1754801447108,-668.63,0.00023193,2]
[378256589,1754801447118,-152.357585,0.00023194,7]
[378256591,1754801447130,-151.0,0.00023195,7]
[378256594,1754801447140,-220.535488,0.00023195,7]
[378256596,1754801447149,-151.0,0.00023216,7]
[378256598,1754801447158,-151.0,0.00023216,7]
[378256600,1754801447168,-151.0,0.00023216,7]
[378256602,1754801447178,-151.0,0.00023218,7]
[378256604,1754801447187,-1707.0,0.00023221,2]
[378256606,1754801447196,-151.0,0.00023227,7]
[378256608,1754801447206,-333.694264,0.00023227,7]
[378256623,1754801447341,-333.694264,0.00023227,7]
[378256625,1754801447352,-151.0,0.00023227,7]
[378256627,1754801447361,-270.691193,0.00023227,7]
[378256629,1754801447371,-230.162785,0.00023227,7]
[378256631,1754801447382,-230.162785,0.00023227,7]
[378256633,1754801447391,-151.0,0.0002323,7]
[378256635,1754801447400,-1233.03917045,0.00023236,2]
[378256637,1754801447410,-1500.0,0.00023236,2]
[378256639,1754801447419,-151.0,0.00023241,7]
[378256641,1754801447428,-151.0,0.00023241,7]
[378256643,1754801447438,-151.0,0.00023241,7]
[378256645,1754801447447,-151.0,0.00023241,7]
[378256647,1754801447456,-567.391488,0.00023241,7]
[378256649,1754801447465,-567.391488,0.00023241,7]
[378256651,1754801447475,-824.785989,0.00023241,7]
[378256653,1754801447484,-824.785989,0.00023241,7]
[378256655,1754801447494,-1051.71139538,0.00023253,2]
[378256657,1754801447504,-1500.0,0.00023253,2]
[378256659,1754801447514,-1707.0,0.0002327,2]
[378256661,1754801447523,-151.0,0.00023286,7]
[378256663,1754801447532,-151.0,0.00023288,7]
[378256665,1754801447541,-151.0,0.00023288,7]
[378256667,1754801447551,-172.552222,0.00023293,7]
[378256669,1754801447560,-151.0,0.000233,10]
[378256671,1754801447568,-420.0,0.0002337,2]
[378256673,1754801447577,-150.0,0.00023384,2]
[378256675,1754801447587,-150.077,0.00023384,2]
[378256677,1754801447596,-378.6,0.00023406,3]
[378256679,1754801447606,-757.2,0.00023407,3]
[378256681,1754801447615,-1707.0,0.00023409,2]
[378256683,1754801447624,-151.0,0.00023409,7]
[378256685,1754801447637,-151.0,0.00023409,7]
[378256687,1754801447653,-151.0,0.00023409,7]
[378256689,1754801447662,-308.663711,0.00023409,7]
[378256691,1754801447673,-308.663711,0.00023409,7]
[378256693,1754801447682,-151.0,0.00023409,7]
[378256695,1754801447691,-4848.45155061,0.00023409,2]
[378256697,1754801447700,-460.0,0.00023414,2]
[378256699,1754801447710,-590.61,0.00023415,2]
[378256701,1754801447719,-460.0,0.00023415,2]
[378256703,1754801447729,-607.53,0.00023415,2]
[378256705,1754801447738,-624.93,0.00023415,2]
[378256707,1754801447747,-822.26,0.00023415,2]
[378256709,1754801447756,-460.0,0.00023415,2]
[378256711,1754801447766,-1351.58,0.00023415,2]
[378256713,1754801447775,-275.05517549,0.00023415,2]
[378256715,1754801447784,-460.0,0.00023415,2]
[378256717,1754801447794,-460.0,0.00023415,2]
[378256719,1754801447803,-460.0,0.00023415,2]
[378256721,1754801447812,-460.0,0.00023415,2]
[378256723,1754801447821,-761.44,0.00023415,2]
[378256725,1754801447831,-460.0,0.00023415,2]
[378256727,1754801447841,-460.0,0.00023415,2]
[378256729,1754801447850,-460.0,0.00023417,2]
[378256731,1754801447859,-485.86,0.00023417,2]
[378256733,1754801447868,-1451.41,0.00023417,2]
[378256735,1754801447877,-460.0,0.00023417,2]
[378256737,1754801447886,-460.0,0.00023417,2]
[378256739,1754801447895,-151.0,0.00023426,7]
[378256741,1754801447905,-151.0,0.00023428,7]
[378256743,1754801447914,-212.05358422,0.0002343,2]
[378256745,1754801447924,-220.329,0.00023464,2]
[378256747,1754801447935,-250.0,0.00023464,2]
[378256749,1754801447944,-150.469,0.00023464,2]
[378256751,1754801447953,-260.992,0.00023464,2]
[378256753,1754801447962,-245.0,0.00023464,2]
[378256755,1754801447971,-219.726,0.00023464,2]
[378256757,1754801447982,-460.0,0.00023466,2]
[378256759,1754801447992,-460.0,0.00023466,2]
[378256761,1754801448002,-769.70275982,0.00023473,2]
[378256763,1754801448011,-674.0,0.00023481,2]
[378256765,1754801448020,-1000.0,0.000235,2]
[378256767,1754801448030,-246.68581088,0.00023521,2]
[378256768,1754801448040,-151.0,0.00023521,2]
[378256771,1754801448050,-234.0,0.00023521,2]
[378256773,1754801448061,-160.0,0.00023568,3]
[378256775,1754801448071,-151.4297,0.00023585,2]
[378256777,1754801448081,-151.0,0.000236,8]
[378256779,1754801448091,-500.0,0.0002364,2]
[378256781,1754801448101,-1707.0,0.0002364,2]
[378256783,1754801448111,-451.0,0.00023655,3]
[378256785,1754801448121,-360.0,0.00023686,2]
[378256787,1754801448133,-460.0,0.00023688,2]
[378256789,1754801448143,-460.0,0.00023689,2]
[378256791,1754801448154,-607.53,0.00023689,2]
[378256793,1754801448164,-624.93,0.00023689,2]
[378256795,1754801448174,-822.26,0.00023689,2]
[378256797,1754801448183,-460.0,0.00023689,2]
[378256799,1754801448192,-1351.58,0.00023689,2]
[378256801,1754801448202,-430.74,0.00023689,2]
[378256803,1754801448212,-529.29,0.00023689,2]
[378256805,1754801448222,-460.0,0.00023689,2]
[378256807,1754801448231,-460.0,0.00023689,2]
[378256809,1754801448241,-761.44,0.00023689,2]
[378256811,1754801448251,-460.0,0.00023689,2]
[378256813,1754801448261,-460.0,0.00023689,2]
[378256815,1754801448270,-151.0,0.0002369,7]
[378256817,1754801448279,-460.0,0.00023691,2]
[378256819,1754801448289,-485.86,0.00023691,2]
[378256821,1754801448298,-1451.41,0.00023691,2]
[378256823,1754801448307,-460.0,0.00023691,2]
[378256825,1754801448317,-460.0,0.00023691,2]
[378256827,1754801448327,-929.42804157,0.00023699,2]
[378256829,1754801448337,-151.0,0.00023702,7]
[378256831,1754801448347,-151.0,0.00023702,7]
[378256833,1754801448356,-333.694264,0.00023702,7]
[378256835,1754801448366,-333.694264,0.00023702,7]
[378256837,1754801448375,-151.0,0.00023702,7]
[378256839,1754801448385,-230.162785,0.00023702,7]
[378256841,1754801448395,-230.162785,0.00023702,7]
[378256843,1754801448404,-151.0,0.00023704,7]
[378256845,1754801448413,-824.785989,0.00023704,7]
[378256847,1754801448423,-824.785989,0.00023704,7]
[378256849,1754801448433,-2674.73892188,0.00023704,2]
[378256851,1754801448442,-276.54,0.00023708,2]
[378256853,1754801448451,-567.391488,0.00023708,7]
[378256855,1754801448461,-567.391488,0.00023708,7]
[378256857,1754801448470,-151.0,0.00023712,7]
[378256859,1754801448480,-151.0,0.00023712,7]
[378256861,1754801448489,-151.0,0.00023733,7]
[378256863,1754801448498,-308.663711,0.00023733,7]
[378256865,1754801448507,-308.663711,0.00023733,7]
[378256867,1754801448517,-151.0,0.00023737,7]
[378256869,1754801448526,-151.0,0.00023737,7]
[378256871,1754801448535,-460.0,0.0002374,2]
[378256873,1754801448545,-460.0,0.0002374,2]
[378256875,1754801448554,-2060.97430568,0.0002376,2]
[378256877,1754801448563,-151.0,0.00023765,7]
[378256879,1754801448573,-151.0,0.00023765,7]
[378256881,1754801448582,-1707.0,0.00023766,2]
[378256883,1754801448591,-1707.0,0.00023771,2]
[378256885,1754801448601,-2000.0,0.00023784,2]
[378256887,1754801448610,-172.81116893,0.00023795,2]
[378256889,1754801448619,-151.0,0.000238,7]
[378256891,1754801448629,-151.0,0.000238,7]
[378256893,1754801448638,-2000.0,0.00023801,2]
[378256895,1754801448648,-1707.0,0.00023885,2]
[378256897,1754801448657,-187.250676,0.00023899,2]
[378256899,1754801448666,-151.0,0.000239,10]
[378256901,1754801448675,-491.22482342,0.000239,2]
[378256903,1754801448685,-150.0,0.00023922,2]
[378256905,1754801448694,-1707.0,0.00023935,2]
[378256907,1754801448704,-460.0,0.00023962,2]
[378256909,1754801448714,-460.0,0.00023963,2]
[378256911,1754801448723,-607.53,0.00023963,2]
[378256913,1754801448734,-624.93,0.00023963,2]
[378256915,1754801448744,-822.26,0.00023963,2]
[378256917,1754801448754,-460.0,0.00023963,2]
[378256919,1754801448763,-1351.58,0.00023963,2]
[378256921,1754801448773,-277.02,0.00023963,2]
[378256923,1754801448783,-460.0,0.00023963,2]
[378256925,1754801448792,-761.44,0.00023963,2]
[378256927,1754801448801,-460.0,0.00023963,2]
[378256929,1754801448810,-460.0,0.00023963,2]
[378256931,1754801448820,-262.76270214,0.00023965,2]
[378256933,1754801448829,-485.86,0.00023965,2]
[378256935,1754801448838,-1451.41,0.00023965,2]
[378256937,1754801448848,-460.0,0.00023965,2]
[378256939,1754801448857,-460.0,0.00023965,2]
[378256941,1754801448867,-502.21921757,0.00023973,2]
[378256943,1754801448877,-600.0,0.00023973,2]
[378256945,1754801448886,-500.0,0.00023973,2]
[378256947,1754801448896,-500.0,0.00023973,2]
[378256949,1754801448907,-150.0,0.00023973,2]
[378256951,1754801448916,-500.0,0.00023973,2]
[378256953,1754801448925,-508.13950765,0.00023973,2]
[378256955,1754801448934,-500.0,0.00023973,2]
[378256957,1754801448944,-500.0,0.00023973,2]
[378256959,1754801448953,-501.34952174,0.00023973,2]
[378256961,1754801448963,-500.0,0.00023973,2]
[378256963,1754801448972,-501.91071121,0.00023973,2]
[378256965,1754801448985,-500.0,0.00023973,2]
[378256967,1754801448994,-500.0,0.00023973,2]
[378256969,1754801449003,-513.84097723,0.00023973,2]
[378256971,1754801449013,-500.0,0.00023973,2]
[378256973,1754801449023,-500.0,0.00023973,2]
[378256975,1754801449033,-500.0,0.00023973,2]
[378256977,1754801449043,-500.0,0.00023973,2]
[378256979,1754801449054,-158.82051096,0.00023973,2]
[378256981,1754801449065,-500.0,0.00023973,2]
[378256983,1754801449075,-500.0,0.00023973,2]
[378256985,1754801449084,-500.0,0.00023973,2]
[378256987,1754801449094,-500.0,0.00023973,2]
[378256989,1754801449103,-315.3618064,0.00023973,2]
[378256991,1754801449112,-500.0,0.00023973,2]
[378256993,1754801449122,-500.0,0.00023973,2]
[378256995,1754801449133,-500.0,0.00023973,2]
[378256997,1754801449143,-500.0,0.00023973,2]
[378256999,1754801449153,-500.0,0.00023973,2]
[378257001,1754801449163,-501.86463235,0.00023973,2]
[378257004,1754801449173,-500.0,0.00023973,2]
[378257005,1754801449183,-507.36370511,0.00023973,2]
[378257007,1754801449193,-235.81686263,0.00023973,2]
[378257009,1754801449203,-500.0,0.00023973,2]
[378257011,1754801449213,-500.0,0.00023973,2]
[378257013,1754801449223,-506.57148679,0.00023973,2]
[378257015,1754801449232,-500.0,0.00023973,2]
[378257017,1754801449241,-500.0,0.00023973,2]
[378257019,1754801449251,-500.0,0.00023973,2]
[378257021,1754801449260,-500.0,0.00023973,2]
[378257023,1754801449270,-500.0,0.00023973,2]
[378257025,1754801449280,-321.84661062,0.00023973,2]
[378257027,1754801449289,-500.0,0.00023973,2]
[378257029,1754801449299,-501.12103853,0.00023973,2]
[378257031,1754801449309,-500.0,0.00023973,2]
[378257033,1754801449318,-500.0,0.00023973,2]
[378257035,1754801449328,-500.0,0.00023973,2]
[378257037,1754801449337,-151.0,0.00023973,7]
[378257039,1754801449347,-151.0,0.00023973,7]
[378257041,1754801449356,-151.0,0.00023976,7]
[378257043,1754801449365,-333.694264,0.00023976,7]
[378257045,1754801449374,-333.694264,0.00023976,7]
[378257047,1754801449384,-230.162785,0.00023976,7]
[378257049,1754801449393,-230.162785,0.00023976,7]
[378257051,1754801449402,-348400.6261534,0.00023998,2]
[378257053,1754801449411,-281.240974,0.00023998,7]
[378257055,1754801449420,-151.0,0.00023998,7]
[378257057,1754801449430,-151.0,0.00023998,7]
[378257059,1754801449439,-333.694264,0.00023998,7]
[378257061,1754801449457,-333.694264,0.00023998,7]
[378257063,1754801449466,-151.0,0.00023998,7]
[378257065,1754801449475,-230.162785,0.00023998,7]
[378257067,1754801449484,-230.162785,0.00023998,7]
[378257069,1754801449493,-151.0,0.00023998,7]